bitfinex-derivatives/quotes_BTCF0:USTF0_20210706
["timestamp","ask_amount","ask_price","bid_price","bid_amount"]
[1625539725965,1.36259451,33799.0,33793.0,0.00350538]
[1625539726315,1.36259451,33799.0,33789.0,1.38324373]
[1625539726413,1.36259451,33799.0,33794.0,0.0035055]
[1625539726713,1.36259451,33799.0,33790.0,0.00350538]
[1625539726913,1.36259451,33799.0,33795.0,0.00350538]
[1625539727163,1.36259451,33799.0,33790.0,0.00350551]
[1625539727264,3.6582,33791.0,33790.0,0.00350551]
[1625539727365,4.53230088,33791.0,33790.0,0.00350551]
[1625539727715,4.53230088,33791.0,33789.0,0.00350555]
[1625539727816,4.53230088,33791.0,33789.0,0.06250555]
[1625539728266,4.53230088,33791.0,33790.0,0.00350551]
[1625539728770,4.53230088,33791.0,33789.0,0.00350553]
[1625539728869,4.47530088,33791.0,33789.0,0.06250553]
[1625539729320,4.47530088,33791.0,33790.0,0.0035055]
[1625539729823,4.47530088,33791.0,33789.0,0.00350552]
[1625539729921,4.47530088,33791.0,33789.0,0.06250552]
[1625539730019,0.54015088,33791.0,33789.0,0.06250552]
[1625539730321,0.29957544,33791.0,33789.0,0.06250552]
[1625539730520,0.29957544,33791.0,33790.0,0.00350547]
[1625539730627,0.29957544,33791.0,33790.0,1.65621812]
[1625539730721,0.24057544,33791.0,33790.0,1.72674645]
[1625539730823,0.24057544,33791.0,33790.0,6.69704645]
[1625539730928,0.24057544,33791.0,33790.0,6.75604645]
[1625539731424,0.24057544,33795.0,33790.0,8.78759061]
[1625539731526,0.24057544,33795.0,33791.0,0.01151764]
[1625539731625,0.24057544,33795.0,33791.0,0.12951764]
[1625539731722,0.24057544,33795.0,33791.0,0.07051764]
[1625539731823,0.24057544,33795.0,33793.0,1.37836074]
[1625539731922,0.24057544,33795.0,33793.0,1.43736074]
[1625539732122,0.24057544,33795.0,33794.0,0.003505]
[1625539732322,0.24057544,33795.0,33794.0,0.062505]
[1625539732623,0.24057544,33795.0,33794.0,1.44044563]
[1625539733428,0.24057544,33795.0,33794.0,1.68102107]
[1625539734528,0.24057544,33795.0,33794.0,1.67751607]
[1625539734781,0.24057544,33795.0,33794.0,1.68102103]
[1625539736285,0.24057544,33795.0,33794.0,1.62202103]
[1625539736683,0.29957544,33795.0,33794.0,1.62202103]
[1625539736783,4.96747544,33795.0,33794.0,1.62202103]
[1625539736934,4.96747544,33795.0,33794.0,0.2440804]
[1625539737184,4.96747544,33795.0,33794.0,0.3030804]
[1625539737383,5.19412544,33795.0,33794.0,0.3030804]
[1625539738086,5.19412544,33795.0,33794.0,0.2440804]
[1625539738188,5.25112544,33795.0,33794.0,0.2440804]
[1625539740648,5.25112544,33795.0,33794.0,0.3030804]
[1625539740850,5.25112544,33795.0,33794.0,0.64901545]
[1625539740851,5.19412544,33795.0,33794.0,0.64901545]
[1625539741550,5.25112544,33795.0,33794.0,0.64901545]
[1625539742100,4.96747544,33795.0,33794.0,0.64901545]
[1625539742302,4.96747544,33795.0,33794.0,0.3030804]
[1625539742651,4.96747544,33795.0,33794.0,0.5633204]
[1625539742754,0.29957544,33795.0,33794.0,0.5633204]
[1625539743153,0.24057544,33795.0,33794.0,0.5633204]
[1625539743604,0.29957544,33795.0,33794.0,0.5633204]
[1625539743955,0.24057544,33795.0,33794.0,0.5633204]
[1625539744058,0.29957544,33795.0,33794.0,0.5633204]
[1625539745110,0.35657544,33795.0,33794.0,0.3030804]
[1625539745359,0.35657544,33795.0,33794.0,0.2440804]
[1625539745459,0.35657544,33795.0,33794.0,0.59049868]
[1625539747013,0.35657544,33795.0,33794.0,0.2440804]
[1625539748819,0.35657544,33795.0,33794.0,0.00350496]
[1625539750016,0.35657544,33795.0,33793.0,0.00350614]
[1625539750217,0.35657544,33795.0,33794.0,0.00350614]
[1625539750517,0.35657544,33795.0,33793.0,0.00350627]
[1625539750818,0.35657544,33795.0,33794.0,0.0035063]
[1625539751322,0.35657544,33795.0,33791.0,0.35027106]
[1625539751569,0.35657544,33795.0,33794.0,0.00350634]
[1625539751671,0.70429829,33795.0,33794.0,0.00350634]
[1625539751819,0.70429829,33795.0,33792.0,0.00350641]
[1625539752070,0.70429829,33795.0,33791.0,0.00350644]
[1625539752421,0.34772926,33794.0,33791.0,0.00350644]
[1625539752520,0.057,33793.0,33791.0,0.00350644]
[1625539752720,0.116,33793.0,33791.0,0.00350644]
[1625539753622,0.24057544,33792.0,33791.0,0.00350644]
[1625539753721,0.29757544,33792.0,33791.0,0.00350644]
[1625539753824,0.35657544,33792.0,33791.0,0.00350644]
[1625539759981,0.35657544,33792.0,33790.0,0.00350668]
[1625539761939,0.35657544,33792.0,33790.0,0.35077751]
[1625539762389,0.35657544,33792.0,33791.0,0.00350666]
[1625539764642,0.29957544,33792.0,33791.0,0.00350666]
[1625539764742,0.29957544,33792.0,33791.0,0.35068144]
[1625539764843,0.29957544,33792.0,33791.0,0.40968144]
[1625539764943,0.29957544,33792.0,33791.0,0.62408144]
[1625539765144,0.29957544,33792.0,33791.0,0.27690666]
[1625539765496,0.29957544,33792.0,33791.0,1.31870366]
[1625539765696,0.24057544,33792.0,33791.0,1.5592791]
[1625539766700,0.34817287,33797.0,33791.0,1.6182791]
[1625539766900,0.34817287,33797.0,33791.0,1.62704439]
[1625539767198,0.34817287,33797.0,33792.0,0.01227062]
[1625539767299,0.9159,33798.0,33796.0,1.04188764]
[1625539767399,0.9159,33798.0,33796.0,1.10088764]
[1625539767600,0.9159,33798.0,33797.0,1.04201026]
[1625539767698,0.9159,33798.0,33797.0,1.28609153]
[1625539767901,0.9159,33798.0,33797.0,1.34509153]
[1625539768201,0.9159,33798.0,33797.0,1.40409153]
[1625539768302,0.9159,33798.0,33797.0,1.34509153]
[1625539768402,0.9159,33798.0,33797.0,1.40409153]
[1625539768553,0.9159,33798.0,33797.0,1.34509153]
[1625539769105,0.9159,33798.0,33797.0,2.5609177]
[1625539769661,0.9159,33798.0,33797.0,2.80149314]
[1625539770010,0.9159,33798.0,33797.0,4.19273704]
[1625539771012,0.9159,33798.0,33797.0,2.80149314]
[1625539771463,0.9159,33798.0,33797.0,4.19376576]
[1625539771813,0.9159,33798.0,33797.0,0.54365671]
[1625539772266,0.9159,33798.0,33797.0,4.19709913]
[1625539774418,0.9749,33798.0,33797.0,4.19709913]
[1625539774618,0.9749,33798.0,33797.0,2.80531154]
[1625539775019,1.49847517,33798.0,33797.0,2.80531154]
[1625539775419,0.9749,33798.0,33797.0,1.5874974]
[1625539775519,1.27961,33798.0,33797.0,1.5874974]
[1625539776021,2.3267225,33798.0,33797.0,1.5874974]
[1625539776924,6.5630225,33798.0,33797.0,1.5874974]
[1625539777122,6.5630225,33798.0,33797.0,1.5284974]
[1625539777724,7.78543625,33798.0,33797.0,1.5284974]
[1625539778276,7.78543625,33798.0,33797.0,1.5874974]
[1625539780078,7.84243625,33798.0,33797.0,1.5874974]
[1625539781129,8.54144842,33798.0,33797.0,2.28443107]
[1625539783987,9.93959729,33798.0,33797.0,2.28443107]
[1625539784888,9.93959729,33798.0,33797.0,2.04385563]
[1625539785092,9.93959729,33798.0,33797.0,1.98485563]
[1625539785593,9.93959729,33798.0,33797.0,0.94101494]
[1625539785692,9.99859729,33798.0,33797.0,0.94101494]
[1625539785892,10.23917273,33798.0,33797.0,0.7004395]
[1625539786143,10.23917273,33798.0,33797.0,0.35259216]
[1625539787297,11.812206,33798.0,33797.0,0.52731953]
[1625539788951,11.812206,33798.0,33797.0,0.00350583]
[1625539789050,11.753206,33798.0,33797.0,0.00350583]
[1625539789603,11.753206,33798.0,33797.0,0.52751733]
[1625539790558,10.18017273,33798.0,33797.0,0.52751733]
[1625539791109,11.75331054,33798.0,33797.0,0.00350583]
[1625539791322,11.81231054,33798.0,33797.0,0.00350583]
[1625539798379,11.81231054,33798.0,33796.0,0.00350661]
[1625539798631,11.81231054,33798.0,33797.0,0.00350663]
[1625539798980,11.81231054,33798.0,33796.0,0.00350663]
[1625539799180,11.81231054,33798.0,33797.0,0.00350663]
[1625539799279,5.87248544,33798.0,33797.0,0.00350663]
[1625539799479,5.87248544,33798.0,33796.0,0.00350663]
[1625539799631,11.81723152,33798.0,33796.0,0.00350663]
[1625539800032,0.24057544,33797.0,33796.0,0.00350663]
[1625539800131,0.29757544,33797.0,33796.0,0.00350663]
[1625539800232,0.41557544,33797.0,33796.0,0.00350663]
[1625539800332,6.36031222,33797.0,33796.0,0.00350663]
[1625539800783,6.36031222,33797.0,33795.0,0.00350672]
[1625539801385,5.9443755,33796.0,33795.0,0.17829767]
[1625539801485,6.0603755,33796.0,33795.0,0.17829767]
[1625539801588,6.1193755,33796.0,33795.0,0.17829767]
[1625539801937,6.0603755,33796.0,33795.0,0.17829767]
[1625539802235,6.0603755,33796.0,33795.0,0.52780313]
[1625539803438,6.0603755,33796.0,33795.0,0.17829767]
[1625539803843,6.0603755,33796.0,33795.0,0.52789384]
[1625539804190,6.0603755,33796.0,33795.0,0.52438712]
[1625539804440,4.48692089,33796.0,33795.0,0.34959617]
[1625539805191,4.48692089,33796.0,33795.0,0.69887628]
[1625539805391,4.48692089,33796.0,33795.0,0.70238275]
[1625539807596,4.48692089,33796.0,33795.0,0.00350647]
[1625539807996,4.48692089,33796.0,33795.0,0.70271123]
[1625539808448,4.48692089,33796.0,33795.0,0.00350647]
[1625539809453,4.48692089,33796.0,33795.0,0.702694]
[1625539811108,5.01009965,33796.0,33795.0,1.2270536]
[1625539811360,5.06909965,33796.0,33795.0,1.2270536]
[1625539811559,5.01209965,33796.0,33795.0,1.2270536]
[1625539811660,4.95309965,33796.0,33795.0,1.2270536]
[1625539811961,4.95309965,33796.0,33795.0,5.2923536]
[1625539813970,5.01009965,33796.0,33795.0,5.2923536]
[1625539814271,2.03479289,33796.0,33795.0,5.2923536]
[1625539814821,6.56822397,33796.0,33795.0,4.59317659]
[1625539815271,4.99902642,33796.0,33795.0,4.59317659]
[1625539817475,5.05802642,33796.0,33795.0,4.59317659]
[1625539817876,6.62653769,33796.0,33795.0,4.59317659]
[1625539818576,6.64219669,33796.0,33795.0,4.24359651]
[1625539818827,6.62653769,33796.0,33795.0,4.24359651]
[1625539819631,6.64219678,33796.0,33795.0,4.24359651]
[1625539820383,6.64219678,33796.0,33795.0,4.06880647]
[1625539823442,6.64219678,33796.0,33795.0,0.00350647]
[1625539824446,6.58319678,33796.0,33795.0,0.00350647]
[1625539825194,6.56753769,33796.0,33795.0,0.00350647]
[1625539825447,6.58319715,33796.0,33795.0,0.00350647]
[1625539825899,6.58319715,33796.0,33795.0,0.06250647]
[1625539825995,6.51053769,33796.0,33795.0,0.06250647]
[1625539826146,6.51053769,33796.0,33795.0,0.30308191]
[1625539826251,4.94202642,33796.0,33795.0,1.52631595]
[1625539826449,4.88302642,33796.0,33795.0,1.52631595]
[1625539826803,4.88302642,33796.0,33795.0,1.58531595]
[1625539827100,4.88302642,33796.0,33795.0,2.5746561]
[1625539827101,3.48741229,33796.0,33795.0,2.5746561]
[1625539827299,1.7437078,33796.0,33795.0,2.5746561]
[1625539827399,1.48531229,33796.0,33795.0,2.5746561]
[1625539827552,1.48531229,33796.0,33795.0,2.59510238]
[1625539827702,1.48531229,33796.0,33795.0,2.65410238]
[1625539827855,0.69751799,33796.0,33795.0,4.051741]
[1625539828252,0.69751799,33796.0,33795.0,4.29231644]
[1625539828351,0.36561799,33796.0,33795.0,4.29231644]
[1625539828452,1.44014895,33798.0,33795.0,5.86460398]
[1625539828652,1.44014895,33798.0,33796.0,0.01168041]
[1625539828753,1.44014895,33798.0,33796.0,0.12968041]
[1625539828853,1.44014895,33798.0,33796.0,0.13318594]
[1625539829005,1.44014895,33798.0,33797.0,0.01167812]
[1625539829105,1.09070786,33798.0,33797.0,3.09952336]
[1625539829203,1.09070786,33798.0,33797.0,3.10302889]
[1625539829555,0.9159,33798.0,33797.0,3.10302889]
[1625539831163,0.9159,33798.0,33797.0,7.67082889]
[1625539832166,0.9159,33798.0,33797.0,7.61182889]
[1625539832570,0.9159,33798.0,33797.0,7.60015077]
[1625539832972,1.26508673,33798.0,33797.0,6.02787976]
[1625539833320,1.26508673,33798.0,33797.0,1.46007976]
[1625539833522,0.9159,33798.0,33797.0,1.40107976]
[1625539833721,0.9749,33798.0,33797.0,1.40107976]
[1625539834172,1.24271,33798.0,33797.0,0.00350553]
[1625539834372,1.29971,33798.0,33797.0,0.00350553]
[1625539834721,1.29971,33798.0,33796.0,0.00350631]
[1625539835022,2.69236215,33798.0,33797.0,0.34952201]
[1625539835572,2.69236215,33798.0,33797.0,0.35302847]
[1625539835672,2.69236215,33798.0,33797.0,0.52779725]
[1625539836074,4.25928633,33798.0,33797.0,0.52779725]
[1625539836278,4.49986177,33798.0,33797.0,0.52779725]
[1625539840079,2.93293759,33798.0,33797.0,0.52779725]
[1625539840581,2.93293759,33798.0,33797.0,0.35302847]
[1625539840880,2.87593759,33798.0,33797.0,0.35302847]
[1625539841230,2.87593759,33798.0,33797.0,0.00350646]
[1625539841581,2.87593759,33798.0,33796.0,0.00350629]
[1625539842433,1.39317632,33797.0,33796.0,0.00350629]
[1625539842633,1.45217632,33797.0,33796.0,0.00350629]
[1625539845991,0.059,33797.0,33796.0,0.00350629]
[1625539846692,1.45508564,33797.0,33796.0,0.00350629]
[1625539847593,2.67680259,33797.0,33796.0,1.22711736]
[1625539848044,1.28071695,33797.0,33796.0,1.22711736]
[1625539848346,2.67693384,33797.0,33796.0,1.22711736]
[1625539848700,2.67693384,33797.0,33796.0,0.00350629]
[1625539854060,2.67693384,33797.0,33796.0,0.06250629]
[1625539854610,2.67693384,33797.0,33796.0,1.28606722]
[1625539854709,2.67693384,33797.0,33796.0,1.61061722]
[1625539854909,2.61793384,33797.0,33796.0,1.61061722]
[1625539855009,1.22171695,33797.0,33796.0,1.61061722]
[1625539855510,2.38007437,33798.0,33796.0,3.00834338]
[1625539855959,2.38007437,33798.0,33796.0,3.00483709]
[1625539856062,2.38007437,33798.0,33797.0,1.22285343]
[1625539856160,2.38007437,33798.0,33797.0,1.28185343]
[1625539856564,1.15647544,33798.0,33797.0,2.67897803]
[1625539858014,1.15647544,33798.0,33797.0,3.72613094]
[1625539858318,1.21547544,33798.0,33797.0,3.72613094]
[1625539858568,2.26405986,33798.0,33797.0,3.72613094]
[1625539858966,2.26405986,33798.0,33797.0,3.66713094]
[1625539859069,2.20505986,33798.0,33797.0,3.66713094]
[1625539859168,3.42846529,33798.0,33797.0,2.27000634]
[1625539859720,3.42846529,33798.0,33797.0,2.32900634]
[1625539861425,3.42846529,33798.0,33797.0,2.33251241]
[1625539861982,3.48746529,33798.0,33797.0,2.33251241]
[1625539862231,3.48746529,33798.0,33797.0,2.27351241]
[1625539862330,3.48546529,33798.0,33797.0,2.27351241]
[1625539862431,3.54446529,33798.0,33797.0,2.27351241]
[1625539862934,6.51615475,33798.0,33797.0,0.52784211]
[1625539863435,6.51615475,33798.0,33797.0,0.61523518]
[1625539863984,6.51615475,33798.0,33797.0,0.26567782]
[1625539864837,6.57515475,33798.0,33797.0,0.26567782]
[1625539864937,6.59082803,33798.0,33797.0,0.26567782]
[1625539865037,6.59082803,33798.0,33797.0,0.00350607]
[1625539865938,8.33670332,33798.0,33794.0,0.00350689]
[1625539866240,0.01567404,33797.0,33794.0,0.00350689]
[1625539866338,5.47768263,33795.0,33794.0,0.00350689]
[1625539866438,5.59368263,33795.0,33794.0,0.00350689]
[1625539866738,5.59368263,33795.0,33793.0,0.00350681]
[1625539867340,3.66920663,33794.0,33793.0,0.00350681]
[1625539867440,3.78520663,33794.0,33793.0,0.06250681]
[1625539867893,3.78520663,33794.0,33793.0,1.11103775]
[1625539868244,3.72620663,33794.0,33793.0,1.11103775]
[1625539868443,4.02578207,33794.0,33793.0,1.11103775]
[1625539869747,3.96878207,33794.0,33793.0,1.11103775]
[1625539869848,3.90978207,33794.0,33793.0,1.11103775]
[1625539870048,2.51201403,33794.0,33793.0,1.11103775]
[1625539870551,1.28894515,33794.0,33793.0,2.33214276]
[1625539870949,1.28894515,33794.0,33793.0,3.72369884]
[1625539871050,1.28894515,33794.0,33793.0,3.72720511]
[1625539871454,1.34794515,33794.0,33793.0,3.72720511]
[1625539871553,1.28894515,33794.0,33793.0,3.72720511]
[1625539871652,1.34594515,33794.0,33793.0,3.72720511]
[1625539871853,1.34594515,33794.0,33793.0,2.33214222]
[1625539871854,2.56933074,33794.0,33793.0,2.33214222]
[1625539872357,2.62833074,33794.0,33793.0,2.33214222]
[1625539873403,2.57133074,33794.0,33793.0,2.33214222]
[1625539873605,2.57133074,33794.0,33793.0,1.11103721]
[1625539874660,2.62833074,33794.0,33793.0,1.11103721]
[1625539874757,4.02661858,33794.0,33793.0,1.11103721]
[1625539876765,3.96961858,33794.0,33793.0,1.11103721]
[1625539878072,2.57133074,33794.0,33793.0,1.11103721]
[1625539878170,2.62833074,33794.0,33793.0,1.11103721]
[1625539878470,2.62833074,33794.0,33793.0,1.35161265]
[1625539878772,4.02667366,33794.0,33793.0,1.35161265]
[1625539879223,2.62833074,33794.0,33793.0,1.35161265]
[1625539879778,4.02669161,33794.0,33793.0,1.35161265]
[1625539881933,4.02669161,33794.0,33793.0,0.30308171]
[1625539884088,4.02669161,33794.0,33793.0,1.34809198]
[1625539887595,3.96969161,33794.0,33793.0,1.64914198]
[1625539888247,2.57133074,33794.0,33793.0,2.86677724]
[1625539888495,2.57133074,33794.0,33793.0,3.10735268]
[1625539888800,3.27074331,33794.0,33793.0,3.80332937]
[1625539891355,3.32774331,33794.0,33793.0,3.80332937]
[1625539891753,4.72735119,33794.0,33793.0,3.80332937]
[1625539893760,4.72735119,33794.0,33793.0,3.74432937]
[1625539894162,8.83925119,33794.0,33793.0,3.74432937]
[1625539895864,8.83925119,33794.0,33793.0,2.52669411]
[1625539896013,8.83925119,33794.0,33793.0,2.22564411]
[1625539896564,10.4143044,33794.0,33793.0,2.22564411]
[1625539897017,10.4143044,33794.0,33793.0,1.18063384]
[1625539897570,10.4143044,33794.0,33793.0,0.65905037]
[1625539897671,10.42997865,33794.0,33793.0,1.0078368]
[1625539898671,10.4143044,33794.0,33793.0,1.09519384]
[1625539898920,10.4143044,33794.0,33793.0,0.83344358]
[1625539899425,10.4143044,33794.0,33793.0,1.18322823]
[1625539899723,6.3024044,33794.0,33793.0,1.18322823]
[1625539899824,6.3024044,33794.0,33793.0,1.42131823]
[1625539900274,6.2434044,33794.0,33793.0,1.42131823]
[1625539900625,6.2434044,33794.0,33793.0,2.46894073]
[1625539900626,4.66835119,33794.0,33793.0,2.46894073]
[1625539900826,4.72735119,33794.0,33793.0,2.46894073]
[1625539900928,4.66835119,33794.0,33793.0,2.46894073]
[1625539901125,4.66835119,33794.0,33793.0,3.69090164]
[1625539902028,4.72735119,33794.0,33793.0,3.69090164]
[1625539902129,4.67035119,33794.0,33793.0,3.74990164]
[1625539902333,4.72735119,33794.0,33793.0,3.74990164]
[1625539905289,4.67035119,33794.0,33793.0,3.74990164]
[1625539907697,4.72735119,33794.0,33793.0,3.74990164]
[1625539908499,4.67035119,33794.0,33793.0,3.74990164]
[1625539908897,4.61135119,33794.0,33793.0,3.74990164]
[1625539909100,3.21174331,33794.0,33793.0,5.14939892]
[1625539909452,3.27074331,33794.0,33793.0,5.14939892]
[1625539915462,4.67068158,33794.0,33793.0,5.14939892]
[1625539916065,4.61168158,33794.0,33793.0,5.14939892]
[1625539916416,3.21174331,33794.0,33793.0,5.14939892]
[1625539917569,3.21174331,33794.0,33793.0,5.16109622]
[1625539917820,2.51363203,33794.0,33793.0,7.25935257]
[1625539919227,2.51363203,33794.0,33793.0,7.31835257]
[1625539920978,2.27305659,33794.0,33793.0,7.31835257]
[1625539921327,1.22468688,33794.0,33793.0,7.31835257]
[1625539922229,1.22468688,33794.0,33793.0,7.32711804]
[1625539922690,0.52527431,33794.0,33793.0,7.56769348]
[1625539922787,0.22277431,33794.0,33793.0,7.56769348]
[1625539923091,0.08763286,33796.0,33793.0,9.31522216]
[1625539923387,0.08763286,33796.0,33794.0,0.01168517]
[1625539923488,0.08763286,33796.0,33794.0,0.08295477]
[1625539923588,0.08763286,33796.0,33794.0,0.14195477]
[1625539923687,0.08763286,33796.0,33795.0,0.01168039]
[1625539923787,1.61573849,33798.0,33795.0,0.01168039]
[1625539923788,0.9159,33798.0,33795.0,7.76623469]
[1625539923888,0.9159,33798.0,33795.0,7.82523469]
[1625539923988,0.9159,33798.0,33796.0,0.01167433]
[1625539924087,0.9159,33798.0,33796.0,0.12967433]
[1625539924289,0.9159,33798.0,33797.0,0.01226795]
[1625539924389,0.9159,33798.0,33797.0,7.75938359]
[1625539924489,0.9159,33798.0,33797.0,7.81838359]
[1625539924739,0.9159,33798.0,33797.0,8.05895903]
[1625539925340,0.9159,33798.0,33797.0,8.05019621]
[1625539928496,0.9159,33798.0,33797.0,6.30554858]
[1625539929898,0.9159,33798.0,33797.0,8.04573399]
[1625539933259,0.9159,33798.0,33797.0,6.30554858]
[1625539934759,0.9159,33798.0,33797.0,6.29388252]
[1625539935060,0.9159,33798.0,33797.0,6.3055082]
[1625539939468,0.9159,33798.0,33797.0,6.6002682]
[1625539939568,0.8279,33798.0,33797.0,6.6002682]
[1625539939669,0.7778,33798.0,33797.0,6.6002682]
[1625539939870,0.7416,33798.0,33797.0,6.6002682]
[1625539944084,0.7416,33798.0,33797.0,8.33463336]
[1625539944429,0.7416,33798.0,33797.0,6.6002682]
[1625539944530,0.7416,33798.0,33797.0,6.60903033]
[1625539944934,0.7368,33798.0,33797.0,6.60903033]
[1625539945331,0.7368,33798.0,33797.0,6.69723033]
[1625539945483,0.08719138,33811.0,33797.0,6.69723033]
[1625539945584,0.08719138,33811.0,33798.0,0.01159073]
[1625539945684,0.08719138,33811.0,33798.0,0.07059073]
[1625539945784,1.58530292,33813.0,33798.0,0.1418569]
[1625539945886,1.58530292,33813.0,33799.0,0.5]
[1625539945982,1.58530292,33813.0,33799.0,0.57058095]
[1625539946081,1.58530292,33813.0,33799.0,0.6418467]
[1625539946187,1.58530292,33813.0,33800.0,0.01158037]
[1625539946285,0.9758,33813.0,33812.0,1.73158045]
[1625539946384,0.9758,33813.0,33812.0,2.02517045]
[1625539946485,0.9758,33813.0,33812.0,2.08417045]
[1625539946585,0.60945388,33816.0,33812.0,2.08417045]
[1625539946783,0.60914691,33818.0,33812.0,3.29889493]
[1625539946885,0.60914691,33818.0,33815.0,0.96230176]
[1625539946984,0.60914691,33818.0,33815.0,1.08030176]
[1625539947284,0.60912268,33819.0,33817.0,0.60539667]
[1625539947385,0.60912268,33819.0,33817.0,0.66439667]
[1625539947483,0.60912268,33819.0,33817.0,0.72339667]
[1625539947690,0.24057544,33821.0,33818.0,1.72760938]
[1625539947786,0.24057544,33821.0,33818.0,1.78660938]
[1625539947889,0.24057544,33821.0,33818.0,1.84911337]
[1625539948136,0.26116681,33822.0,33819.0,0.00350397]
[1625539948237,0.08711356,33822.0,33820.0,0.34548913]
[1625539948337,0.08711356,33822.0,33820.0,0.46348913]
[1625539948689,0.60865021,33824.0,33821.0,0.08980183]
[1625539948785,0.60865021,33824.0,33823.0,5.0663]
[1625539948887,0.60865021,33824.0,33823.0,5.66545088]
[1625539949136,0.60865021,33824.0,33823.0,5.66895475]
[1625539949238,0.2609742,33824.0,33823.0,5.66895475]
[1625539949542,0.08704932,33824.0,33823.0,5.66895475]
[1625539950444,0.60864888,33825.0,33823.0,5.66895475]
[1625539950744,0.60864888,33825.0,33824.0,0.0035038]
[1625539950845,0.60864888,33825.0,33824.0,0.36207924]
[1625539951200,0.08704866,33825.0,33824.0,0.36207924]
[1625539951296,0.29185765,33826.0,33824.0,0.36207924]
[1625539951495,0.29185765,33826.0,33824.0,0.86207924]
[1625539951797,0.29185765,33826.0,33825.0,0.00350326]
[1625539951897,1.04267272,33828.0,33825.0,0.00350326]
[1625539951898,0.17378669,33828.0,33825.0,0.12150326]
[1625539951996,0.17378669,33828.0,33826.0,0.5]
[1625539952097,0.17378669,33828.0,33826.0,0.85069]
[1625539952347,0.17378669,33828.0,33827.0,0.00350303]
[1625539952448,0.17378669,33828.0,33827.0,0.12150303]
[1625539952550,0.17376186,33836.0,33827.0,1.84423651]
[1625539952849,0.17376186,33836.0,33835.0,0.72172632]
[1625539952948,0.17376186,33836.0,33835.0,1.14256632]
[1625539953050,0.41410575,33838.0,33835.0,1.14256632]
[1625539953148,0.41410575,33838.0,33837.0,4.5066]
[1625539953248,0.41410575,33838.0,33837.0,4.5656]
[1625539953448,0.41410575,33838.0,33837.0,4.6246]
[1625539954654,0.24057544,33838.0,33837.0,4.6246]
[1625539954855,0.29757544,33838.0,33837.0,4.6246]
[1625539955306,0.470938,33838.0,33837.0,4.6246]
[1625539957510,0.470938,33838.0,33837.0,4.5656]
[1625539957809,0.29757544,33838.0,33837.0,4.5656]
[1625539959163,0.29757544,33838.0,33837.0,4.6246]
[1625539959262,0.29757544,33838.0,33837.0,4.5656]
[1625539959562,0.29757544,33838.0,33837.0,4.6246]
[1625539959665,0.29757544,33838.0,33837.0,4.5656]
[1625539960215,0.29757544,33838.0,33837.0,0.059]
[1625539960418,0.29757544,33838.0,33835.0,0.72172632]
[1625539960518,0.35657544,33838.0,33835.0,0.78072632]
[1625539960616,0.35657544,33838.0,33835.0,0.72172632]
[1625539960717,0.17312854,33837.0,33835.0,0.72172632]
[1625539960816,0.057,33836.0,33835.0,0.72172632]
[1625539960917,0.116,33836.0,33835.0,0.72172632]
[1625539961317,5.1089,33836.0,33835.0,0.72172632]
[1625539961670,5.28203615,33836.0,33835.0,0.72172632]
[1625539962572,5.28203615,33836.0,33835.0,0.78072632]
[1625539963423,5.22303615,33836.0,33835.0,0.78072632]
[1625539963525,5.0499,33836.0,33835.0,0.78072632]
[1625539963875,5.22300961,33836.0,33835.0,0.78072632]
[1625539964575,5.28200961,33836.0,33835.0,0.78072632]
[1625539965281,5.22300961,33836.0,33835.0,0.78072632]
[1625539965829,5.28200961,33836.0,33835.0,0.78072632]
[1625539965929,5.62186961,33836.0,33835.0,0.78072632]
[1625539966231,5.44876,33836.0,33835.0,0.78072632]
[1625539967583,5.38976,33836.0,33835.0,0.78072632]
[1625539967686,5.44876,33836.0,33835.0,0.78072632]
[1625539967786,0.45586,33836.0,33835.0,0.78072632]
[1625539967889,1.14771001,33836.0,33835.0,0.78072632]
[1625539967986,1.08871001,33836.0,33835.0,0.78072632]
[1625539968086,1.14771001,33836.0,33835.0,0.78072632]
[1625539968288,0.74885001,33836.0,33835.0,0.78072632]
[1625539968490,0.23011626,33836.0,33835.0,0.78072632]
[1625539968890,0.057,33836.0,33835.0,0.78072632]
[1625539968989,0.057,33836.0,33835.0,1.05426632]
[1625539969590,0.24057544,33837.0,33835.0,1.05426632]
[1625539969695,0.17312267,33839.0,33835.0,1.05426632]
[1625539969792,0.17312267,33839.0,33835.0,4.91566632]
[1625539969994,0.23012267,33839.0,33835.0,4.91566632]
[1625539970596,0.23012267,33839.0,33836.0,0.00350243]
[1625539970702,0.23012267,33839.0,33836.0,0.06250243]
[1625539970799,0.23012267,33839.0,33836.0,0.12150243]
[1625539970997,0.23012267,33839.0,33837.0,0.24057544]
[1625539971099,0.23012267,33839.0,33837.0,0.36207761]
[1625539971200,0.17311951,33842.0,33837.0,0.36207761]
[1625539971351,0.17311951,33842.0,33838.0,0.00350208]
[1625539971450,0.23011487,33843.0,33838.0,0.06250208]
[1625539971550,0.23011487,33843.0,33838.0,0.12150208]
[1625539971900,0.23011487,33843.0,33839.0,0.00350205]
[1625539972000,0.23011487,33843.0,33839.0,0.06250205]
[1625539972100,0.23011487,33843.0,33839.0,0.12150205]
[1625539972352,0.23011487,33843.0,33839.0,0.06250205]
[1625539972451,0.23011487,33843.0,33839.0,0.059]
[1625539972701,0.23011487,33843.0,33840.0,0.00350208]
[1625539972902,0.23011487,33843.0,33840.0,0.06250208]
[1625539973001,0.23011487,33843.0,33842.0,0.24057544]
[1625539973202,0.23011487,33843.0,33842.0,0.52857544]
[1625539974509,0.23011487,33843.0,33842.0,0.53207768]
[1625539974807,0.23011487,33843.0,33842.0,5.59097768]
[1625539975508,0.057,33843.0,33842.0,5.59097768]
[1625539976360,0.23015834,33843.0,33842.0,5.59097768]
[1625539976960,0.23015834,33843.0,33842.0,5.83155312]
[1625539977410,0.23015834,33843.0,33842.0,0.77265312]
[1625539977711,0.28915834,33843.0,33842.0,0.77265312]
[1625539977813,0.28915834,33843.0,33842.0,0.48465312]
[1625539978013,0.116,33843.0,33842.0,0.48465312]
[1625539978114,0.116,33843.0,33842.0,0.00350224]
[1625539978211,0.33569,33843.0,33842.0,0.00350224]
[1625539978312,0.39469,33843.0,33842.0,0.00350224]
[1625539978412,2.12557835,33843.0,33842.0,0.00350224]
[1625539978763,5.95387835,33843.0,33830.0,0.00350273]
[1625539978863,7.16600702,33843.0,33830.0,0.06250273]
[1625539979064,0.057,33836.0,33835.0,0.24057544]
[1625539979513,0.057,33836.0,33835.0,0.24407817]
[1625539979671,0.057,33836.0,33835.0,0.30307817]
[1625539981115,0.057,33836.0,33835.0,0.36207817]
[1625539981814,0.057,33836.0,33835.0,0.30307817]
[1625539982715,0.057,33836.0,33835.0,0.36207817]
[1625539982815,0.17338087,33841.0,33835.0,0.36207817]
[1625539982915,0.17338087,33841.0,33835.0,0.66804817]
[1625539983017,0.17338087,33841.0,33840.0,0.24057544]
[1625539983318,0.17338087,33841.0,33840.0,0.29957544]
[1625539983517,0.17338087,33841.0,33840.0,0.30307784]
[1625539983818,0.74996889,33843.0,33840.0,0.30307784]